[Event "Wch u20 girls"]
[Site "Kocaeli"]
[Date "2013.09.26"]
[Round "13.18"]
[White "Nguyen, Thi Mai Hung"]
[Black "Karabayeva, Zhanna"]
[Result "1-0"]
[ECO "A48"]
[WhiteElo "2225"]
[BlackElo "2029"]
[PlyCount "73"]
[EventDate "2013.09.??"]
[EventType "swiss"]
[EventRounds "13"]
[EventCountry "TUR"]
[Source "CBase R.Goldau"]
[SourceDate "2000.03.01"]
[TimeControl "40/5400+30:1800+30"]

1. d4 {[%emt 0:00:30]} Nf6 {[%emt 0:00:30]} 2. Bf4 {[%emt 0:00:30]} g6 {[%emt
0:00:00]} 3. e3 {[%emt 0:00:00]} Bg7 {[%emt 0:00:00]} 4. Nf3 {[%emt 0:00:00]}
O-O {[%emt 0:01:30]} 5. Be2 {[%emt 0:00:30]} d6 {[%emt 0:09:30]} 6. O-O {[%emt
0:00:30]} h6 {[%emt 0:00:30]} 7. h3 {[%emt 0:01:30]} Nfd7 {[%emt 0:05:30]} 8.
c4 {[%emt 0:01:30]} c5 {[%emt 0:02:30]} 9. Nc3 {[%emt 0:00:30]} Nc6 {[%emt 0:
00:30]} 10. Qd2 {[%emt 0:04:30]} g5 {[%emt 0:03:30]} 11. Bh2 {[%emt 0:00:30]}
f5 {[%emt 0:00:30]} 12. d5 {[%emt 0:03:30]} Nce5 {[%emt 0:05:30]} 13. Nxe5 {
[%emt 0:00:30]} dxe5 {[%emt 0:03:30]} 14. Rad1 {[%emt 0:08:30]} a6 {[%emt 0:07:
30]} 15. Kh1 {[%emt 0:04:30]} Qe8 {[%emt 0:09:30]} 16. f4 {[%emt 0:05:30]} Qg6
{[%emt 0:00:30]} 17. d6 {[%emt 0:11:30]} e6 {[%emt 0:01:30]} 18. fxe5 {[%emt 0:
00:30]} Bxe5 {[%emt 0:00:30]} 19. Bxe5 {[%emt 0:01:30]} Nxe5 {[%emt 0:00:30]}
20. Na4 {[%emt 0:00:30]} Bd7 {[%emt 0:09:30]} 21. Nxc5 {[%emt 0:03:30]} Bc6 {
[%emt 0:00:30]} 22. Qd4 {[%emt 0:02:30]} Nf7 {[%emt 0:00:30]} 23. Nd3 {[%emt 0:
07:30]} Rae8 {[%emt 0:17:30]} 24. Ne5 {[%emt 0:01:30]} Nxe5 {[%emt 0:00:30]}
25. Qxe5 {[%emt 0:00:30]} g4 {[%emt 0:00:30]} 26. hxg4 {[%emt 0:05:30]} h5 {
[%emt 0:00:30]} 27. Kg1 {[%emt 0:00:30]} hxg4 {[%emt 0:00:30]} 28. Rd4 {[%emt
0:05:30]} Rf7 {[%emt 0:01:30]} 29. c5 {[%emt 0:05:30]} Rh7 {[%emt 0:05:35]} 30.
Bc4 {[%emt 0:04:30]} g3 {[%emt 0:06:41]} 31. Rxf5 {[%emt 0:01:49]} Rh2 {[%emt
0:04:34]} 32. Rg5 {[%emt 0:04:43]} Rxg2+ {[%emt 0:00:46]} 33. Kf1 {[%emt 0:00:
03]} Rf8+ {[%emt 0:02:08]} 34. Rf4 {[%emt 0:00:15]} Rxf4+ {[%emt 0:00:46]} 35.
exf4 {[%emt 0:00:08]} Kh7 {[%emt 0:01:05]} 36. Rxg6 {[%emt 0:00:27]} Kxg6 {
[%emt 0:00:01]} 37. Qxe6+ {[%emt 0:00:39]} 1-0

[Event "Wch u20 girls"]
[Site "Kocaeli"]
[Date "2013.09.26"]
[Round "13.19"]
[White "Rakhmangulova, Anastasiya"]
[Black "Soylemez, Cansu"]
[Result "1-0"]
[ECO "B30"]
[WhiteElo "2194"]
[BlackElo "1905"]
[PlyCount "99"]
[EventDate "2013.09.??"]
[EventType "swiss"]
[EventRounds "13"]
[EventCountry "TUR"]
[Source "CBase R.Goldau"]
[SourceDate "2000.03.01"]
[TimeControl "40/5400+30:1800+30"]

1. e4 {[%emt 0:00:30]} c5 {[%emt 0:00:30]} 2. Nf3 {[%emt 0:00:00]} Nc6 {[%emt
0:00:00]} 3. Bc4 {[%emt 0:00:00]} e6 {[%emt 0:00:00]} 4. Qe2 {[%emt 0:00:00]}
a6 {[%emt 0:00:30]} 5. d3 {[%emt 0:00:00]} Be7 {[%emt 0:00:30]} 6. Bb3 {[%emt
0:00:30]} Nf6 {[%emt 0:00:30]} 7. c3 {[%emt 0:00:30]} O-O {[%emt 0:02:30]} 8.
O-O {[%emt 0:00:30]} b5 {[%emt 0:00:30]} 9. e5 {[%emt 0:04:30]} Nd5 {[%emt 0:
02:30]} 10. d4 {[%emt 0:00:30]} cxd4 {[%emt 0:00:30]} 11. cxd4 {[%emt 0:00:00]}
Bb7 {[%emt 0:02:30]} 12. Nc3 {[%emt 0:02:00]} Nxc3 {[%emt 0:03:30]} 13. bxc3 {
[%emt 0:00:00]} Rc8 {[%emt 0:04:30]} 14. Bc2 {[%emt 0:00:00]} f5 {[%emt 0:01:
30]} 15. exf6 {[%emt 0:06:30]} Bxf6 {[%emt 0:00:30]} 16. h4 {[%emt 0:04:30]}
Ne7 {[%emt 0:07:30]} 17. Ng5 {[%emt 0:11:30]} g6 {[%emt 0:04:30]} 18. h5 {
[%emt 0:03:30]} Nf5 {[%emt 0:07:30]} 19. Ne4 {[%emt 0:10:30]} Bg7 {[%emt 0:03:
30]} 20. hxg6 {[%emt 0:02:30]} hxg6 {[%emt 0:00:30]} 21. Bg5 {[%emt 0:01:30]}
Qc7 {[%emt 0:04:30]} 22. Rac1 {[%emt 0:04:30]} Kf7 {[%emt 0:07:30]} 23. Qg4 {
[%emt 0:05:30]} Rh8 {[%emt 0:03:30]} 24. Bf4 {[%emt 0:01:30]} Qb6 {[%emt 0:04:
30]} 25. Rfe1 {[%emt 0:14:30]} Bxe4 {[%emt 0:08:30]} 26. Bxe4 {[%emt 0:00:30]}
Rh4 {[%emt 0:00:30]} 27. Qf3 {[%emt 0:01:30]} Rch8 {[%emt 0:00:30]} 28. Kf1 {
[%emt 0:12:15]} Qa5 {[%emt 0:08:30]} 29. Bd2 {[%emt 0:01:08]} Kg8 {[%emt 0:03:
09]} 30. Ke2 {[%emt 0:01:19]} b4 {[%emt 0:02:19]} 31. g3 {[%emt 0:04:38]} Rh2 {
[%emt 0:00:56]} 32. Qg4 {[%emt 0:04:14]} Kf7 {[%emt 0:03:10]} 33. cxb4 {[%emt
0:03:43]} Qxa2 {[%emt 0:00:18]} 34. Rc2 {[%emt 0:00:51]} Nxd4+ {[%emt 0:01:47]}
35. Kf1 {[%emt 0:00:03]} Nxc2 {[%emt 0:10:07]} 36. Qxg6+ {[%emt 0:00:04]} Kf8 {
[%emt 0:00:10]} 37. Bxc2 {[%emt 0:00:41]} Qc4+ {[%emt 0:00:48]} 38. Bd3 {[%emt
0:00:58]} Qd5 {[%emt 0:02:11]} 39. Qe4 {[%emt 0:01:26]} Qxe4 {[%emt 0:00:52]}
40. Rxe4 {[%emt 0:00:00]} Ke7 {[%emt 0:00:00]} 41. Bxa6 {[%emt 0:01:40]} Rf8 {
[%emt 0:03:43]} 42. Be3 {[%emt 0:00:30]} Ra8 {[%emt 0:01:30]} 43. b5 {[%emt 0:
01:30]} d5 {[%emt 0:01:30]} 44. Bc5+ {[%emt 0:05:30]} Kd7 {[%emt 0:01:30]} 45.
Rf4 {[%emt 0:02:30]} Bh6 {[%emt 0:12:25]} 46. Rf7+ {[%emt 0:00:30]} Kd8 {[%emt
0:00:29]} 47. Rh7 {[%emt 0:00:30]} Rb8 {[%emt 0:02:56]} 48. b6 {[%emt 0:01:30]}
e5 {[%emt 0:07:37]} 49. Bb5 {[%emt 0:01:36]} Kc8 {[%emt 0:01:10]} 50. Rc7+ {
[%emt 0:00:24]} 1-0

[Event "Wch u20 girls"]
[Site "Kocaeli"]
[Date "2013.09.26"]
[Round "13.20"]
[White "Juhasz, Barbara"]
[Black "Edes, Zsofia"]
[Result "1-0"]
[ECO "B20"]
[WhiteElo "2131"]
[BlackElo "2044"]
[PlyCount "69"]
[EventDate "2013.09.??"]
[EventType "swiss"]
[EventRounds "13"]
[EventCountry "TUR"]
[Source "CBase R.Goldau"]
[SourceDate "2000.03.01"]
[TimeControl "40/5400+30:1800+30"]

1. e4 {[%emt 0:00:30]} c5 {[%emt 0:02:30]} 2. b3 {[%emt 0:00:00]} Nc6 {[%emt 0:
00:30]} 3. Bb2 {[%emt 0:00:00]} d6 {[%emt 0:00:00]} 4. Bb5 {[%emt 0:00:00]} Bd7
{[%emt 0:00:00]} 5. Ne2 {[%emt 0:00:00]} a6 {[%emt 0:00:30]} 6. Bxc6 {[%emt 0:
00:30]} Bxc6 {[%emt 0:00:00]} 7. d3 {[%emt 0:00:00]} e6 {[%emt 0:00:00]} 8. O-O
{[%emt 0:00:00]} Nf6 {[%emt 0:01:30]} 9. Nd2 {[%emt 0:02:30]} Be7 {[%emt 0:00:
30]} 10. Ng3 {[%emt 0:00:30]} h5 {[%emt 0:04:30]} 11. f3 {[%emt 0:02:30]} h4 {
[%emt 0:26:30]} 12. Ne2 {[%emt 0:04:30]} h3 {[%emt 0:02:30]} 13. g3 {[%emt 0:
00:30]} Qc7 {[%emt 0:03:30]} 14. c4 {[%emt 0:06:30]} d5 {[%emt 0:06:30]} 15.
cxd5 {[%emt 0:09:30]} exd5 {[%emt 0:01:30]} 16. Qc2 {[%emt 0:09:30]} O-O-O {
[%emt 0:10:30]} 17. Rac1 {[%emt 0:06:30]} g5 {[%emt 0:09:30]} 18. e5 {[%emt 0:
17:30]} Nh5 {[%emt 0:05:30]} 19. d4 {[%emt 0:02:30]} f6 {[%emt 0:03:31]} 20.
dxc5 {[%emt 0:09:30]} Kb8 {[%emt 0:04:08]} 21. Nd4 {[%emt 0:00:30]} Ng7 {[%emt
0:08:28]} 22. exf6 {[%emt 0:04:30]} Bxf6 {[%emt 0:00:07]} 23. Qg6 {[%emt 0:01:
30]} Rhf8 {[%emt 0:02:26]} 24. Rfe1 {[%emt 0:01:30]} Rde8 {[%emt 0:06:09]} 25.
Rxe8+ {[%emt 0:06:40]} Bxe8 {[%emt 0:00:10]} 26. Qd3 {[%emt 0:00:05]} Ka8 {
[%emt 0:00:48]} 27. b4 {[%emt 0:00:46]} Bd7 {[%emt 0:00:42]} 28. Re1 {[%emt 0:
00:59]} Nh5 {[%emt 0:00:45]} 29. Nf1 {[%emt 0:01:23]} Be5 {[%emt 0:00:02]} 30.
Ne6 {[%emt 0:00:00]} Bxe6 {[%emt 0:00:25]} 31. Bxe5 {[%emt 0:00:08]} Qc6 {
[%emt 0:00:29]} 32. Bd6 {[%emt 0:06:21]} Rf6 {[%emt 0:00:59]} 33. Qh7 {[%emt 0:
00:23]} Bf7 {[%emt 0:00:53]} 34. Qh8+ {[%emt 0:00:07]} Ka7 {[%emt 0:00:26]} 35.
Qb8# {[%emt 0:00:08]} 1-0

[Event "Wch u20 girls"]
[Site "Kocaeli"]
[Date "2013.09.26"]
[Round "13.21"]
[White "Petrova, Irina"]
[Black "Pujari, Rucha"]
[Result "1-0"]
[ECO "D53"]
[WhiteElo "2117"]
[BlackElo "2172"]
[PlyCount "69"]
[EventDate "2013.09.??"]
[EventType "swiss"]
[EventRounds "13"]
[EventCountry "TUR"]
[Source "CBase R.Goldau"]
[SourceDate "2000.03.01"]
[TimeControl "40/5400+30:1800+30"]

1. d4 {[%emt 0:00:30]} d5 {[%emt 0:00:30]} 2. c4 {[%emt 0:00:00]} e6 {[%emt 0:
00:30]} 3. Nc3 {[%emt 0:00:00]} Nf6 {[%emt 0:00:00]} 4. Bg5 {[%emt 0:00:00]}
Be7 {[%emt 0:00:00]} 5. cxd5 {[%emt 0:00:00]} Nxd5 {[%emt 0:00:30]} 6. Bxe7 {
[%emt 0:01:30]} Qxe7 {[%emt 0:00:30]} 7. e4 {[%emt 0:01:30]} Nxc3 {[%emt 0:00:
30]} 8. bxc3 {[%emt 0:00:30]} O-O {[%emt 0:01:30]} 9. Nf3 {[%emt 0:07:30]} c5 {
[%emt 0:02:30]} 10. Be2 {[%emt 0:04:30]} Nc6 {[%emt 0:16:30]} 11. d5 {[%emt 0:
06:30]} exd5 {[%emt 0:03:30]} 12. exd5 {[%emt 0:00:30]} Rd8 {[%emt 0:01:30]}
13. O-O {[%emt 0:04:30]} Be6 {[%emt 0:04:30]} 14. c4 {[%emt 0:01:30]} Bg4 {
[%emt 0:00:30]} 15. Re1 {[%emt 0:03:30]} Bxf3 {[%emt 0:03:30]} 16. Bxf3 {[%emt
0:00:00]} Qf6 {[%emt 0:00:30]} 17. Rb1 {[%emt 0:08:00]} b6 {[%emt 0:25:30]} 18.
dxc6 {[%emt 0:02:30]} Rxd1 {[%emt 0:00:30]} 19. Rbxd1 {[%emt 0:00:30]} g6 {
[%emt 0:11:30]} 20. Rd7 {[%emt 0:02:30]} Rc8 {[%emt 0:04:30]} 21. c7 {[%emt 0:
04:30]} Kg7 {[%emt 0:01:49]} 22. Bb7 {[%emt 0:06:30]} Qc3 {[%emt 0:06:54]} 23.
Red1 {[%emt 0:04:30]} Rxc7 {[%emt 0:00:24]} 24. Rxc7 {[%emt 0:00:30]} Qxc4 {
[%emt 0:00:09]} 25. Bd5 {[%emt 0:01:30]} Qe2 {[%emt 0:00:08]} 26. Bb3 {[%emt 0:
01:30]} Kh6 {[%emt 0:01:40]} 27. h4 {[%emt 0:02:30]} a5 {[%emt 0:02:06]} 28.
Rf1 {[%emt 0:04:30]} Qe5 {[%emt 0:06:39]} 29. Rxf7 {[%emt 0:00:30]} b5 {[%emt
0:00:53]} 30. Rd1 {[%emt 0:01:30]} c4 {[%emt 0:03:36]} 31. Rdd7 {[%emt 0:00:00]
} Qe1+ {[%emt 0:00:20]} 32. Kh2 {[%emt 0:00:00]} Kh5 {[%emt 0:00:20]} 33. Rxh7+
{[%emt 0:00:30]} Kg4 {[%emt 0:00:02]} 34. Bd1+ {[%emt 0:00:00]} Kf4 {[%emt 0:
00:33]} 35. Rhf7+ {[%emt 0:00:00]} 1-0

[Event "Wch u20 girls"]
[Site "Kocaeli"]
[Date "2013.09.26"]
[Round "13.22"]
[White "Martinez, Ayelen"]
[Black "Savant, Riya"]
[Result "0-1"]
[ECO "B34"]
[WhiteElo "2101"]
[BlackElo "1960"]
[PlyCount "124"]
[EventDate "2013.09.??"]
[EventType "swiss"]
[EventRounds "13"]
[EventCountry "TUR"]
[Source "CBase R.Goldau"]
[SourceDate "2000.03.01"]
[TimeControl "40/5400+30:1800+30"]

1. e4 {[%emt 0:00:30]} c5 {[%emt 0:00:30]} 2. Nf3 {[%emt 0:00:00]} Nc6 {[%emt
0:00:00]} 3. d4 {[%emt 0:00:00]} cxd4 {[%emt 0:00:00]} 4. Nxd4 {[%emt 0:00:30]}
g6 {[%emt 0:00:30]} 5. Nc3 {[%emt 0:01:30]} Bg7 {[%emt 0:00:30]} 6. Nxc6 {
[%emt 0:00:30]} bxc6 {[%emt 0:00:30]} 7. Bc4 {[%emt 0:00:30]} Qa5 {[%emt 0:03:
30]} 8. Qf3 {[%emt 0:01:30]} Nf6 {[%emt 0:04:30]} 9. O-O {[%emt 0:02:30]} O-O {
[%emt 0:01:30]} 10. a3 {[%emt 0:02:30]} Bb7 {[%emt 0:08:30]} 11. b4 {[%emt 0:
05:30]} Qh5 {[%emt 0:06:30]} 12. Qxh5 {[%emt 0:01:30]} Nxh5 {[%emt 0:01:30]}
13. Bd2 {[%emt 0:01:30]} d5 {[%emt 0:07:30]} 14. exd5 {[%emt 0:00:30]} cxd5 {
[%emt 0:01:30]} 15. Bb3 {[%emt 0:02:30]} Rac8 {[%emt 0:05:30]} 16. Ne2 {[%emt
0:02:30]} Bxa1 {[%emt 0:03:30]} 17. Rxa1 {[%emt 0:00:30]} Nf6 {[%emt 0:08:30]}
18. Be3 {[%emt 0:04:30]} a6 {[%emt 0:05:30]} 19. Bd4 {[%emt 0:01:30]} Ne4 {
[%emt 0:04:30]} 20. Nf4 {[%emt 0:04:30]} Rfd8 {[%emt 0:04:30]} 21. Re1 {[%emt
0:01:30]} Rd7 {[%emt 0:03:30]} 22. Nd3 {[%emt 0:05:30]} Kf8 {[%emt 0:06:30]}
23. f3 {[%emt 0:01:30]} Nd2 {[%emt 0:02:30]} 24. Ba4 {[%emt 0:05:30]} Rd6 {
[%emt 0:02:24]} 25. Be3 {[%emt 0:02:30]} Nc4 {[%emt 0:00:45]} 26. Bh6+ {[%emt
0:01:30]} Kg8 {[%emt 0:00:01]} 27. Rxe7 {[%emt 0:00:30]} Bc6 {[%emt 0:01:30]}
28. Bb3 {[%emt 0:02:30]} Re8 {[%emt 0:02:26]} 29. Ra7 {[%emt 0:03:30]} Ra8 {
[%emt 0:03:18]} 30. Rc7 {[%emt 0:01:30]} Nxa3 {[%emt 0:02:26]} 31. Bf4 {[%emt
0:02:30]} Rf6 {[%emt 0:01:19]} 32. Bg5 {[%emt 0:00:30]} Nb5 {[%emt 0:00:49]}
33. Re7 {[%emt 0:05:30]} Re6 {[%emt 0:01:31]} 34. Ne5 {[%emt 0:04:30]} Rxe7 {
[%emt 0:01:21]} 35. Bxe7 {[%emt 0:00:30]} Bb7 {[%emt 0:00:36]} 36. Nd7 {[%emt
0:00:30]} Rc8 {[%emt 0:04:03]} 37. Nc5 {[%emt 0:05:30]} Bc6 {[%emt 0:00:39]}
38. Bf6 {[%emt 0:02:30]} Nc7 {[%emt 0:01:51]} 39. Be5 {[%emt 0:00:30]} Ne6 {
[%emt 0:00:57]} 40. Nxa6 {[%emt 0:00:00]} Bb5 {[%emt 0:00:00]} 41. Nc5 {[%emt
0:14:00]} Nxc5 {[%emt 0:05:04]} 42. bxc5 {[%emt 0:00:30]} Rxc5 {[%emt 0:02:30]}
43. Bd4 {[%emt 0:10:30]} Rc8 {[%emt 0:01:30]} 44. Kf2 {[%emt 0:04:30]} Bc4 {
[%emt 0:02:30]} 45. Bxc4 {[%emt 0:00:30]} Rxc4 {[%emt 0:00:00]} 46. c3 {[%emt
0:00:00]} Ra4 {[%emt 0:01:00]} 47. g4 {[%emt 0:00:00]} Ra2+ {[%emt 0:00:30]}
48. Kg3 {[%emt 0:00:30]} Kf8 {[%emt 0:03:35]} 49. h4 {[%emt 0:06:30]} Ke7 {
[%emt 0:01:08]} 50. Kf4 {[%emt 0:00:30]} f6 {[%emt 0:04:10]} 51. Kg3 {[%emt 0:
06:30]} Ke6 {[%emt 0:01:29]} 52. Kh3 {[%emt 0:01:13]} f5 {[%emt 0:05:15]} 53.
Kg3 {[%emt 0:00:14]} fxg4 {[%emt 0:03:54]} 54. fxg4 {[%emt 0:00:10]} h5 {[%emt
0:00:53]} 55. Kf3 {[%emt 0:03:41]} Rh2 {[%emt 0:02:29]} 56. Kg3 {[%emt 0:03:15]
} Re2 {[%emt 0:00:38]} 57. gxh5 {[%emt 0:06:30]} gxh5 {[%emt 0:00:04]} 58. Kf4
{[%emt 0:00:09]} Rg2 {[%emt 0:00:10]} 59. Kf3 {[%emt 0:00:05]} Rg4 {[%emt 0:00:
17]} 60. Bf2 {[%emt 0:00:04]} Kf5 {[%emt 0:00:17]} 61. Be1 {[%emt 0:01:05]} Rc4
{[%emt 0:00:31]} 62. Kg3 {[%emt 0:00:47]} Ke4 {[%emt 0:00:21]} 0-1

[Event "Wch u20 girls"]
[Site "Kocaeli"]
[Date "2013.09.26"]
[Round "13.23"]
[White "Vo, Thi Kim Phung"]
[Black "Shristi, J Shetty"]
[Result "1-0"]
[ECO "D02"]
[WhiteElo "2219"]
[BlackElo "1909"]
[PlyCount "131"]
[EventDate "2013.09.??"]
[EventType "swiss"]
[EventRounds "13"]
[EventCountry "TUR"]
[Source "CBase R.Goldau"]
[SourceDate "2000.03.01"]
[TimeControl "40/5400+30:1800+30"]

1. d4 {[%emt 0:00:30]} Nf6 {[%emt 0:00:30]} 2. Bf4 {[%emt 0:00:00]} e6 {[%emt
0:00:30]} 3. e3 {[%emt 0:00:00]} c5 {[%emt 0:00:30]} 4. c3 {[%emt 0:01:30]} Nc6
{[%emt 0:00:30]} 5. Nd2 {[%emt 0:00:30]} d5 {[%emt 0:00:30]} 6. Ngf3 {[%emt 0:
00:00]} Bd6 {[%emt 0:02:30]} 7. Bg3 {[%emt 0:01:00]} Bxg3 {[%emt 0:15:30]} 8.
hxg3 {[%emt 0:00:30]} Qd6 {[%emt 0:05:30]} 9. Bb5 {[%emt 0:00:30]} Bd7 {[%emt
0:00:30]} 10. O-O {[%emt 0:01:30]} Ne7 {[%emt 0:07:30]} 11. Bd3 {[%emt 0:00:30]
} Qb6 {[%emt 0:01:30]} 12. Qb3 {[%emt 0:01:30]} Qxb3 {[%emt 0:07:30]} 13. axb3
{[%emt 0:00:30]} cxd4 {[%emt 0:00:00]} 14. exd4 {[%emt 0:00:30]} O-O {[%emt 0:
05:00]} 15. Ne5 {[%emt 0:01:30]} Nc6 {[%emt 0:02:30]} 16. Ndf3 {[%emt 0:01:30]}
Nxe5 {[%emt 0:02:30]} 17. Nxe5 {[%emt 0:00:00]} Be8 {[%emt 0:08:30]} 18. b4 {
[%emt 0:02:00]} Ne4 {[%emt 0:02:30]} 19. Bxe4 {[%emt 0:00:30]} dxe4 {[%emt 0:
00:30]} 20. Rfe1 {[%emt 0:01:30]} f6 {[%emt 0:00:30]} 21. Nc4 {[%emt 0:00:30]}
f5 {[%emt 0:04:30]} 22. Nb6 {[%emt 0:00:30]} Rb8 {[%emt 0:01:30]} 23. Rxa7 {
[%emt 0:00:00]} Bc6 {[%emt 0:00:30]} 24. Ra5 {[%emt 0:03:00]} Rfd8 {[%emt 0:00:
30]} 25. Rea1 {[%emt 0:01:30]} Kf7 {[%emt 0:01:30]} 26. Nc4 {[%emt 0:01:30]}
Ke7 {[%emt 0:02:30]} 27. Ne5 {[%emt 0:00:30]} Be8 {[%emt 0:04:30]} 28. f3 {
[%emt 0:00:30]} exf3 {[%emt 0:02:30]} 29. gxf3 {[%emt 0:00:30]} g5 {[%emt 0:01:
30]} 30. Re1 {[%emt 0:02:30]} Kf6 {[%emt 0:01:06]} 31. Kf2 {[%emt 0:00:30]} h5
{[%emt 0:00:33]} 32. Nd3 {[%emt 0:01:30]} Rd6 {[%emt 0:03:53]} 33. Rae5 {[%emt
0:03:30]} Bf7 {[%emt 0:02:11]} 34. Ra1 {[%emt 0:02:30]} h4 {[%emt 0:04:41]} 35.
gxh4 {[%emt 0:01:30]} gxh4 {[%emt 0:00:02]} 36. Rh1 {[%emt 0:01:30]} Rh8 {
[%emt 0:00:35]} 37. Ra5 {[%emt 0:01:30]} Be8 {[%emt 0:02:48]} 38. Ne5 {[%emt 0:
01:30]} Bc6 {[%emt 0:02:51]} 39. b5 {[%emt 0:00:30]} Be8 {[%emt 0:01:13]} 40.
Ra8 {[%emt 0:00:00]} Rd5 {[%emt 0:00:00]} 41. b6 {[%emt 0:04:00]} Rb5 {[%emt 0:
02:07]} 42. b4 {[%emt 0:00:00]} Kg7 {[%emt 0:01:30]} 43. Rg1+ {[%emt 0:00:00]}
Kh7 {[%emt 0:00:00]} 44. Nc4 {[%emt 0:03:30]} Rd5 {[%emt 0:02:00]} 45. Rc8 {
[%emt 0:01:30]} Rd7 {[%emt 0:02:30]} 46. Rc7 {[%emt 0:00:30]} h3 {[%emt 0:02:
30]} 47. Nd6 {[%emt 0:00:30]} Rxc7 {[%emt 0:00:30]} 48. bxc7 {[%emt 0:00:30]}
Bd7 {[%emt 0:00:00]} 49. Rg3 {[%emt 0:01:30]} Ra8 {[%emt 0:00:00]} 50. Rxh3+ {
[%emt 0:00:30]} Kg7 {[%emt 0:00:30]} 51. f4 {[%emt 0:03:30]} b6 {[%emt 0:00:30]
} 52. c4 {[%emt 0:00:30]} Ra2+ {[%emt 0:03:30]} 53. Ke1 {[%emt 0:00:30]} Ra1+ {
[%emt 0:00:30]} 54. Kd2 {[%emt 0:00:30]} Ra2+ {[%emt 0:00:30]} 55. Kc1 {[%emt
0:00:00]} Ra1+ {[%emt 0:01:30]} 56. Kb2 {[%emt 0:00:00]} Rf1 {[%emt 0:02:30]}
57. Rh4 {[%emt 0:00:00]} Rf2+ {[%emt 0:03:30]} 58. Kc3 {[%emt 0:00:00]} Rf3+ {
[%emt 0:00:00]} 59. Kd2 {[%emt 0:00:30]} Rf2+ {[%emt 0:01:00]} 60. Ke3 {[%emt
0:00:00]} Ra2 {[%emt 0:00:30]} 61. c8=Q {[%emt 0:02:00]} Bxc8 {[%emt 0:00:30]}
62. Nxc8 {[%emt 0:00:00]} Ra4 {[%emt 0:00:00]} 63. Nxb6 {[%emt 0:00:00]} Rxb4 {
[%emt 0:00:00]} 64. c5 {[%emt 0:00:30]} Rb3+ {[%emt 0:00:30]} 65. Ke2 {[%emt 0:
00:00]} Kf7 {[%emt 0:00:30]} 66. Nc4 {[%emt 0:00:00]} 1-0

[Event "Wch u20 girls"]
[Site "Kocaeli"]
[Date "2013.09.26"]
[Round "13.24"]
[White "Krumova, Ani"]
[Black "De Seroux, Camille"]
[Result "1-0"]
[ECO "B25"]
[WhiteElo "1993"]
[BlackElo "2108"]
[PlyCount "71"]
[EventDate "2013.09.??"]
[EventType "swiss"]
[EventRounds "13"]
[EventCountry "TUR"]
[Source "CBase R.Goldau"]
[SourceDate "2000.03.01"]
[TimeControl "40/5400+30:1800+30"]

1. e4 {[%emt 0:00:30]} c5 {[%emt 0:00:30]} 2. Nc3 {[%emt 0:00:00]} Nc6 {[%emt
0:00:00]} 3. f4 {[%emt 0:00:00]} g6 {[%emt 0:00:00]} 4. Nf3 {[%emt 0:00:00]}
Bg7 {[%emt 0:00:30]} 5. g3 {[%emt 0:00:00]} d6 {[%emt 0:01:30]} 6. Bg2 {[%emt
0:00:30]} Nf6 {[%emt 0:00:30]} 7. O-O {[%emt 0:00:30]} O-O {[%emt 0:01:30]} 8.
d3 {[%emt 0:00:00]} Rb8 {[%emt 0:01:30]} 9. h3 {[%emt 0:03:00]} b5 {[%emt 0:01:
30]} 10. Ne2 {[%emt 0:02:30]} b4 {[%emt 0:03:30]} 11. g4 {[%emt 0:01:30]} a5 {
[%emt 0:04:30]} 12. f5 {[%emt 0:04:30]} Nd7 {[%emt 0:03:30]} 13. Qe1 {[%emt 0:
05:30]} a4 {[%emt 0:04:30]} 14. Rb1 {[%emt 0:03:30]} Nde5 {[%emt 0:02:30]} 15.
b3 {[%emt 0:07:30]} Nxf3+ {[%emt 0:06:30]} 16. Rxf3 {[%emt 0:00:30]} Qa5 {
[%emt 0:05:30]} 17. Bb2 {[%emt 0:06:30]} Ne5 {[%emt 0:01:30]} 18. Rf1 {[%emt 0:
02:30]} Bb7 {[%emt 0:08:30]} 19. Qh4 {[%emt 0:06:30]} Rfe8 {[%emt 0:08:30]} 20.
g5 {[%emt 0:04:30]} gxf5 {[%emt 0:06:30]} 21. Bxe5 {[%emt 0:03:30]} Bxe5 {
[%emt 0:01:30]} 22. Rxf5 {[%emt 0:00:30]} Rf8 {[%emt 0:05:30]} 23. Rbf1 {[%emt
0:03:30]} Bc8 {[%emt 0:09:30]} 24. R5f2 {[%emt 0:09:30]} axb3 {[%emt 0:01:30]}
25. axb3 {[%emt 0:01:30]} Qa2 {[%emt 0:01:30]} 26. Kh1 {[%emt 0:07:30]} Bd7 {
[%emt 0:04:22]} 27. Nf4 {[%emt 0:03:30]} Bd4 {[%emt 0:02:23]} 28. Rf3 {[%emt 0:
02:30]} Bc6 {[%emt 0:06:04]} 29. Rg3 {[%emt 0:09:46]} Qb2 {[%emt 0:06:49]} 30.
Nh5 {[%emt 0:00:51]} Kh8 {[%emt 0:01:19]} 31. Bf3 {[%emt 0:06:26]} Ra8 {[%emt
0:00:36]} 32. Bg4 {[%emt 0:00:28]} Ra1 {[%emt 0:00:48]} 33. Rgf3 {[%emt 0:00:
18]} Qxc2 {[%emt 0:01:04]} 34. Nf6 {[%emt 0:00:24]} Rxf1+ {[%emt 0:00:33]} 35.
Rxf1 {[%emt 0:00:05]} Bxf6 {[%emt 0:00:31]} 36. Bf5 {[%emt 0:00:15]} 1-0

[Event "Wch u20 girls"]
[Site "Kocaeli"]
[Date "2013.09.26"]
[Round "13.25"]
[White "Saranya, J."]
[Black "Alymbay, Kyzy Aizhan"]
[Result "1-0"]
[ECO "B44"]
[WhiteElo "2094"]
[BlackElo "1820"]
[PlyCount "63"]
[EventDate "2013.09.??"]
[EventType "swiss"]
[EventRounds "13"]
[EventCountry "TUR"]
[Source "CBase R.Goldau"]
[SourceDate "2000.03.01"]
[TimeControl "40/5400+30:1800+30"]

1. e4 {[%emt 0:00:30]} c5 {[%emt 0:00:30]} 2. Nf3 {[%emt 0:00:00]} e6 {[%emt 0:
00:00]} 3. d4 {[%emt 0:00:00]} cxd4 {[%emt 0:00:00]} 4. Nxd4 {[%emt 0:00:00]}
Nc6 {[%emt 0:00:30]} 5. c4 {[%emt 0:01:00]} Nf6 {[%emt 0:00:00]} 6. Nc3 {[%emt
0:00:00]} Bb4 {[%emt 0:00:00]} 7. Nxc6 {[%emt 0:00:00]} dxc6 {[%emt 0:02:30]}
8. Qxd8+ {[%emt 0:01:30]} Kxd8 {[%emt 0:00:30]} 9. Bd2 {[%emt 0:00:30]} e5 {
[%emt 0:03:30]} 10. f3 {[%emt 0:01:30]} Be6 {[%emt 0:02:30]} 11. O-O-O {[%emt
0:00:30]} Ke7 {[%emt 0:02:30]} 12. g4 {[%emt 0:01:30]} Bc5 {[%emt 0:13:30]} 13.
Na4 {[%emt 0:03:30]} Bd4 {[%emt 0:03:30]} 14. Bb4+ {[%emt 0:01:30]} Ke8 {[%emt
0:01:30]} 15. Bc5 {[%emt 0:02:30]} Bxc5 {[%emt 0:06:30]} 16. Nxc5 {[%emt 0:00:
00]} Bc8 {[%emt 0:00:30]} 17. Nd3 {[%emt 0:01:00]} Nd7 {[%emt 0:00:30]} 18. Bh3
{[%emt 0:00:30]} f6 {[%emt 0:03:30]} 19. g5 {[%emt 0:01:30]} Nf8 {[%emt 0:03:
30]} 20. Bxc8 {[%emt 0:02:30]} Rxc8 {[%emt 0:00:00]} 21. Nc5 {[%emt 0:01:30]}
b6 {[%emt 0:01:00]} 22. Nb7 {[%emt 0:01:30]} Ke7 {[%emt 0:06:30]} 23. Nd6 {
[%emt 0:00:30]} Rc7 {[%emt 0:03:30]} 24. gxf6+ {[%emt 0:02:30]} gxf6 {[%emt 0:
00:30]} 25. Nf5+ {[%emt 0:00:30]} Kf7 {[%emt 0:01:30]} 26. Rd8 {[%emt 0:03:30]}
h5 {[%emt 0:02:30]} 27. Rhd1 {[%emt 0:01:30]} Rh7 {[%emt 0:03:30]} 28. Nd6+ {
[%emt 0:01:30]} Ke7 {[%emt 0:01:30]} 29. Re8+ {[%emt 0:00:30]} Kd7 {[%emt 0:00:
30]} 30. Rxf8 {[%emt 0:00:00]} Ke6 {[%emt 0:01:30]} 31. Nf5 {[%emt 0:01:00]}
Rcd7 {[%emt 0:00:30]} 32. Re8+ {[%emt 0:00:00]} 1-0